fUST/lending_fUST_20251209
["ID","MTS","AMOUNT","RATE_DAILY","PERIOD"]
[398011950,1765283442971,-165.325733,7.92e-05,2]
[398011951,1765283442981,-302.0621335,7.92e-05,2]
[398011952,1765283442990,-165.325733,7.92e-05,2]
[398011953,1765283442999,-301.9689207,7.92e-05,2]
[398011954,1765283443009,-413.3312335,7.92e-05,2]
[398011955,1765283443019,-624.6418288,7.921e-05,2]
[398011956,1765283443028,-302.0621335,7.93e-05,2]
[398011957,1765283443039,-597.0407023,7.93e-05,2]
[398011958,1765283443049,-302.0621335,7.93e-05,2]
[398011959,1765283443059,-1203.2864636,7.93e-05,2]
[398011960,1765283443068,-597.0407023,7.93e-05,2]
[398011961,1765283443078,-302.0621335,7.93e-05,2]
[398011962,1765283443087,-597.0407023,7.93e-05,2]
[398011963,1765283443097,-165.325733,7.93e-05,2]
[398011964,1765283443107,-590.7472517,7.93e-05,2]
[398011965,1765283443116,-301.7824951,7.93e-05,2]
[398011967,1765283443126,-302.0621335,7.93e-05,2]
[398011969,1765283443135,-513.0021069,7.93e-05,2]
[398011971,1765283443145,-165.325733,7.93e-05,2]
[398011973,1765283443154,-449.58403507,7.987e-05,2]
[398011975,1765283443163,-597.0407023,8.02e-05,2]
[398011977,1765283443172,-597.0407023,8.02e-05,2]
[398011979,1765283443184,-500.0,8.219e-05,2]
[398011981,1765283443194,-171.14625143,8.219e-05,2]
[398011983,1765283443203,-1534.79,8.219e-05,2]
[398011985,1765283443212,-1534.79,8.219e-05,2]
[398011987,1765283443222,-1534.79,8.219e-05,2]
[398011989,1765283443232,-1534.79,8.219e-05,2]
[398011991,1765283443241,-1534.79,8.219e-05,2]
[398011993,1765283443251,-1534.79,8.219e-05,2]
[398011995,1765283443261,-1534.79,8.219e-05,2]
[398011997,1765283443270,-1534.79,8.219e-05,2]
[398011999,1765283443279,-1534.79,8.219e-05,2]
[398012001,1765283443288,-1534.79,8.219e-05,2]
[398012003,1765283443298,-1534.79,8.219e-05,2]
[398012005,1765283443307,-1534.79,8.219e-05,2]
[398012007,1765283443316,-1534.79,8.219e-05,2]
[398012009,1765283443326,-1534.79,8.219e-05,2]
[398012011,1765283443335,-1534.79,8.219e-05,2]
[398012013,1765283443346,-1534.79,8.219e-05,2]
[398012014,1765283443359,-1534.79,8.219e-05,2]
[398012016,1765283443369,-1534.79,8.219e-05,2]
[398012018,1765283443378,-1534.79,8.219e-05,2]
[398012020,1765283443389,-1534.79,8.219e-05,2]
[398012023,1765283443399,-1534.79,8.219e-05,2]
[398012024,1765283443409,-1534.79,8.219e-05,2]
[398012026,1765283443419,-1534.79,8.219e-05,2]
[398012029,1765283443430,-1534.84865689,8.219e-05,2]
[398012031,1765283443441,-500.0,8.219e-05,2]
[398012032,1765283443450,-500.0,8.37e-05,2]
[398012035,1765283443459,-529.96,8.404e-05,2]
[398012037,1765283443469,-500.0,8.493e-05,2]
[398012039,1765283443478,-223.97368952,8.514e-05,2]
[398012040,1765283443487,-282.93,8.561e-05,2]
[398012042,1765283443497,-262.02775972,8.574e-05,2]
[398012044,1765283443508,-500.0,8.767e-05,2]
[398012046,1765283443518,-530.69111584,8.784e-05,2]
[398012048,1765283443527,-600.0,8.798e-05,2]
[398012050,1765283443537,-752.8614,8.8e-05,2]
[398012052,1765283443546,-150.5722,8.8e-05,2]
[398012054,1765283443555,-502.58625451,8.8e-05,2]
[398012056,1765283443564,-150.5722,8.976e-05,2]
[398012058,1765283443573,-500.0,9.041e-05,2]
[398012060,1765283443583,-153.0,9.041e-05,2]
[398012062,1765283443592,-153.0,9.041e-05,2]
[398012064,1765283443601,-153.0,9.041e-05,2]
[398012067,1765283443611,-153.0,9.041e-05,2]
[398012068,1765283443619,-153.0,9.041e-05,2]
[398012070,1765283443628,-794.94,9.104e-05,2]
[398012073,1765283443638,-150.5722,9.24e-05,2]
[398012075,1765283443647,-500.0,9.315e-05,2]
[398012077,1765283443658,-530.69111584,9.334e-05,2]
[398012079,1765283443667,-250.0,9.525e-05,2]
[398012081,1765283443676,-500.0,9.589e-05,2]
[398012083,1765283443686,-720.0,9.677e-05,2]
[398012085,1765283443696,-271.19439665,9.729e-05,2]
[398012087,1765283443704,-1000.0,9.8e-05,3]
[398012089,1765283443714,-1059.92,9.804e-05,2]
[398012091,1765283443723,-500.0,9.863e-05,2]
[398012093,1765283443732,-307.8398572,9.863e-05,2]
[398012095,1765283443742,-153.0,9.863e-05,2]
[398012097,1765283443752,-153.0,9.863e-05,2]
[398012099,1765283443761,-153.0,9.863e-05,2]
[398012101,1765283443771,-530.69111584,9.884e-05,2]
[398012103,1765283443780,-159.0,9.9e-05,2]
[398012105,1765283443790,-159.0,9.9e-05,2]
[398012107,1765283443799,-160.0,9.9e-05,2]
[398012109,1765283443809,-2911.28004947,0.0001,2]
[398012111,1765283443818,-288.29467345,0.0001,2]
[398012113,1765283443828,-1000.0,0.0001,2]
[398012115,1765283443837,-15025.85006288,0.0001,2]
[398012117,1765283443847,-3000.0,0.0001,2]
[398012119,1765283443857,-529.59864982,0.0001,2]
[398012121,1765283443865,-300.31348173,0.0001,2]
[398012123,1765283443875,-1157.9663924,0.0001,2]
[398012125,1765283443883,-10000.0,0.0001,2]
[398012127,1765283443892,-532.1,0.0001,2]
[398012129,1765283443902,-532.1,0.000101,2]
[398012131,1765283443911,-150.5722,0.0001012,2]
[398012133,1765283443920,-500.0,0.00010137,2]
[398012135,1765283443929,-532.1,0.000102,2]
[398012137,1765283443939,-532.1,0.000102,2]
[398012139,1765283443948,-532.1,0.000103,2]
[398012140,1765283443957,-532.1,0.000104,2]
[398012142,1765283443967,-500.0,0.00010411,2]
[398012145,1765283443976,-306.2595735,0.00010411,2]
[398012146,1765283443986,-530.69111584,0.00010434,2]
[398012148,1765283443996,-532.1,0.000105,2]
[398012151,1765283444005,-1324.9,0.00010505,2]
[398012153,1765283444015,-10000.0,0.00010585,2]
[398012155,1765283444024,-532.1,0.000106,2]
[398012157,1765283444033,-423.27750462,0.00010618,2]
[398012158,1765283444042,-415.0,0.00010638,2]
[398012161,1765283444052,-864.0,0.00010645,2]
[398012162,1765283444062,-280.112833,0.00010685,2]
[398012164,1765283444071,-280.112833,0.00010685,2]
[398012166,1765283444080,-280.112833,0.00010685,2]
[398012168,1765283444089,-280.112833,0.00010685,2]
[398012170,1765283444099,-280.112833,0.00010685,2]
[398012172,1765283444108,-280.112833,0.00010685,2]
[398012174,1765283444117,-280.112833,0.00010685,2]
[398012176,1765283444127,-280.112833,0.00010685,2]
[398012178,1765283444136,-280.112833,0.00010685,2]
[398012180,1765283444146,-280.112833,0.00010685,2]
[398012182,1765283444156,-280.112833,0.00010685,2]
[398012184,1765283444165,-280.112833,0.00010685,2]
[398012186,1765283444175,-280.112833,0.00010685,2]
[398012188,1765283444185,-280.112833,0.00010685,2]
[398012190,1765283444195,-280.112833,0.00010685,2]
[398012192,1765283444204,-280.112833,0.00010685,2]
[398012194,1765283444212,-291.943704,0.00010685,2]
[398012196,1765283444222,-291.943704,0.00010685,2]
[398012199,1765283444232,-291.943704,0.00010685,2]
[398012200,1765283444241,-291.943704,0.00010685,2]
[398012202,1765283444250,-291.943704,0.00010685,2]
[398012204,1765283444260,-291.943704,0.00010685,2]
[398012206,1765283444269,-291.943704,0.00010685,2]
[398012208,1765283444278,-291.943704,0.00010685,2]
[398012210,1765283444287,-291.943704,0.00010685,2]
[398012212,1765283444296,-291.943704,0.00010685,2]
[398012214,1765283444305,-291.943704,0.00010685,2]
[398012216,1765283444314,-291.943704,0.00010685,2]
[398012218,1765283444324,-291.943704,0.00010685,2]
[398012220,1765283444335,-291.943704,0.00010685,2]
[398012222,1765283444344,-291.943704,0.00010685,2]
[398012224,1765283444358,-291.943704,0.00010685,2]
[398012226,1765283444367,-151.0,0.00010685,2]
[398012228,1765283444377,-151.0,0.00010685,2]
[398012230,1765283444386,-151.0,0.00010685,2]
[398012232,1765283444398,-151.0,0.00010685,2]
[398012234,1765283444408,-151.0,0.00010685,2]
[398012236,1765283444418,-151.0,0.00010685,2]
[398012238,1765283444429,-151.0,0.00010685,2]
[398012240,1765283444439,-151.0,0.00010685,2]
[398012242,1765283444448,-151.0,0.00010685,2]
[398012244,1765283444458,-210.560851,0.00010685,2]
[398012246,1765283444467,-422.590346,0.00010685,2]
[398012248,1765283444476,-422.590346,0.00010685,2]
[398012250,1765283444485,-422.590346,0.00010685,2]
[398012252,1765283444494,-422.590346,0.00010685,2]
[398012254,1765283444503,-422.590346,0.00010685,2]
[398012255,1765283444513,-422.590346,0.00010685,2]
[398012257,1765283444522,-422.590346,0.00010685,2]
[398012259,1765283444531,-422.590346,0.00010685,2]
[398012261,1765283444540,-422.590346,0.00010685,2]
[398012263,1765283444550,-422.590346,0.00010685,2]
[398012265,1765283444558,-422.590346,0.00010685,2]
[398012267,1765283444568,-422.590346,0.00010685,2]
[398012269,1765283444577,-422.590346,0.00010685,2]
[398012271,1765283444586,-422.590346,0.00010685,2]
[398012273,1765283444594,-422.590346,0.00010685,2]
[398012275,1765283444604,-422.590346,0.00010685,2]
[398012277,1765283444613,-151.0,0.00010685,2]
[398012279,1765283444623,-151.0,0.00010685,2]
[398012281,1765283444632,-151.0,0.00010685,2]
[398012283,1765283444641,-151.0,0.00010685,2]
[398012285,1765283444650,-151.0,0.00010685,2]
[398012308,1765283444871,-151.0,0.00010685,2]
[398012310,1765283444881,-151.0,0.00010685,2]
[398012312,1765283444890,-151.0,0.00010685,2]
[398012314,1765283444900,-151.0,0.00010685,2]
[398012316,1765283444910,-151.0,0.00010685,2]
[398012319,1765283444920,-151.0,0.00010685,2]
[398012321,1765283444930,-151.0,0.00010685,2]
[398012322,1765283444940,-151.0,0.00010685,2]
[398012325,1765283444950,-151.0,0.00010685,2]
[398012326,1765283444960,-151.0,0.00010685,2]
[398012328,1765283444969,-152.233006,0.00010685,2]
[398012330,1765283444980,-331.023637,0.00010685,2]
[398012332,1765283444989,-331.023637,0.00010685,2]
[398012334,1765283444997,-331.023637,0.00010685,2]
[398012336,1765283445008,-331.023637,0.00010685,2]
[398012338,1765283445019,-331.023637,0.00010685,2]
[398012340,1765283445028,-331.023637,0.00010685,2]
[398012342,1765283445037,-331.023637,0.00010685,2]
[398012344,1765283445046,-331.023637,0.00010685,2]
[398012346,1765283445055,-331.023637,0.00010685,2]
[398012347,1765283445064,-331.023637,0.00010685,2]
[398012349,1765283445074,-331.023637,0.00010685,2]
[398012351,1765283445083,-331.023637,0.00010685,2]
[398012353,1765283445092,-331.023637,0.00010685,2]
[398012355,1765283445101,-331.023637,0.00010685,2]
[398012356,1765283445111,-331.023637,0.00010685,2]
[398012358,1765283445120,-331.023637,0.00010685,2]
[398012360,1765283445130,-151.0,0.00010685,2]
[398012362,1765283445139,-151.0,0.00010685,2]
[398012364,1765283445149,-151.0,0.00010685,2]
[398012366,1765283445159,-151.0,0.00010685,2]
[398012367,1765283445168,-151.0,0.00010685,2]
[398012369,1765283445178,-151.0,0.00010685,2]
[398012371,1765283445187,-151.0,0.00010685,2]
[398012373,1765283445196,-151.0,0.00010685,2]
[398012375,1765283445205,-151.0,0.00010685,2]
[398012377,1765283445215,-151.0,0.00010685,2]
[398012379,1765283445224,-151.0,0.00010685,2]
[398012381,1765283445233,-151.0,0.00010685,2]
[398012383,1765283445243,-151.0,0.00010685,2]
[398012385,1765283445252,-151.0,0.00010685,2]
[398012386,1765283445261,-151.0,0.00010685,2]
[398012388,1765283445270,-151.0,0.00010685,2]
[398012390,1765283445279,-151.0,0.00010685,2]
[398012392,1765283445288,-151.0,0.00010685,2]
[398012394,1765283445298,-151.0,0.00010685,2]
[398012396,1765283445307,-151.0,0.00010685,2]
[398012397,1765283445316,-192.106122,0.00010685,2]
[398012399,1765283445325,-151.0,0.00010685,2]
[398012401,1765283445334,-151.0,0.00010685,2]
[398012403,1765283445344,-151.0,0.00010685,2]
[398012405,1765283445356,-151.0,0.00010685,2]
[398012406,1765283445366,-151.0,0.00010685,2]
[398012407,1765283445375,-151.0,0.00010685,2]
[398012408,1765283445384,-151.0,0.00010685,2]
[398012410,1765283445393,-151.0,0.00010685,2]
[398012412,1765283445402,-151.0,0.00010685,2]
[398012413,1765283445411,-151.0,0.00010685,2]
[398012414,1765283445421,-151.0,0.00010685,2]
[398012415,1765283445430,-151.0,0.00010685,2]
[398012416,1765283445439,-151.0,0.00010685,2]
[398012417,1765283445450,-151.0,0.00010685,2]
[398012418,1765283445459,-151.0,0.00010685,2]
[398012419,1765283445469,-151.0,0.00010685,2]
[398012420,1765283445479,-151.0,0.00010685,2]
[398012421,1765283445488,-151.0,0.00010685,2]
[398012422,1765283445498,-151.0,0.00010685,2]
[398012423,1765283445508,-151.0,0.00010685,2]
[398012424,1765283445518,-151.0,0.00010685,2]
[398012425,1765283445528,-151.0,0.00010685,2]
[398012426,1765283445538,-151.0,0.00010685,2]
[398012428,1765283445547,-151.0,0.00010685,2]
[398012429,1765283445556,-151.0,0.00010685,2]
[398012431,1765283445566,-151.0,0.00010685,2]
[398012433,1765283445575,-151.0,0.00010685,2]
[398012435,1765283445585,-246.675638,0.00010685,2]
[398012436,1765283445594,-151.0,0.00010685,2]
[398012438,1765283445604,-151.0,0.00010685,2]
[398012440,1765283445613,-151.0,0.00010685,2]
[398012442,1765283445622,-157.023811,0.00010685,2]
[398012443,1765283445632,-233.616259,0.00010685,2]
[398012444,1765283445641,-233.616259,0.00010685,2]
[398012445,1765283445650,-233.616259,0.00010685,2]
[398012446,1765283445660,-233.616259,0.00010685,2]
[398012447,1765283445669,-233.616259,0.00010685,2]
[398012448,1765283445678,-233.616259,0.00010685,2]
[398012449,1765283445688,-233.616259,0.00010685,2]
[398012451,1765283445697,-233.616259,0.00010685,2]
[398012452,1765283445706,-233.616259,0.00010685,2]
[398012453,1765283445716,-233.616259,0.00010685,2]
[398012454,1765283445725,-233.616259,0.00010685,2]
[398012455,1765283445734,-233.616259,0.00010685,2]
[398012456,1765283445743,-233.616259,0.00010685,2]
[398012457,1765283445752,-233.616259,0.00010685,2]
[398012458,1765283445761,-233.616259,0.00010685,2]
[398012459,1765283445770,-233.616259,0.00010685,2]
[398012460,1765283445780,-233.616259,0.00010685,2]
[398012461,1765283445789,-233.616259,0.00010685,2]
[398012462,1765283445798,-233.616259,0.00010685,2]
[398012463,1765283445807,-233.616259,0.00010685,2]
[398012464,1765283445816,-193.207712,0.00010685,2]
[398012465,1765283445826,-193.207712,0.00010685,2]
[398012466,1765283445835,-193.207712,0.00010685,2]
[398012467,1765283445844,-193.207712,0.00010685,2]
[398012468,1765283445853,-193.207712,0.00010685,2]
[398012469,1765283445862,-193.207712,0.00010685,2]
[398012470,1765283445872,-193.207712,0.00010685,2]
[398012471,1765283445881,-193.207712,0.00010685,2]
[398012472,1765283445890,-193.207712,0.00010685,2]
[398012473,1765283445900,-193.207712,0.00010685,2]
[398012474,1765283445910,-193.207712,0.00010685,2]
[398012475,1765283445919,-193.207712,0.00010685,2]
[398012476,1765283445929,-193.207712,0.00010685,2]
[398012477,1765283445939,-193.207712,0.00010685,2]
[398012478,1765283445949,-193.207712,0.00010685,2]
[398012479,1765283445958,-193.207712,0.00010685,2]
[398012480,1765283445967,-193.207712,0.00010685,2]
[398012481,1765283445976,-193.207712,0.00010685,2]
[398012482,1765283445985,-193.207712,0.00010685,2]
[398012483,1765283445994,-193.207713,0.00010685,2]
[398012484,1765283446003,-151.0,0.00010685,2]
[398012485,1765283446013,-151.0,0.00010685,2]
[398012486,1765283446022,-151.0,0.00010685,2]
[398012487,1765283446031,-151.0,0.00010685,2]
[398012488,1765283446040,-151.0,0.00010685,2]
[398012489,1765283446049,-151.0,0.00010685,2]
[398012490,1765283446058,-151.0,0.00010685,2]
[398012491,1765283446067,-151.0,0.00010685,2]
[398012492,1765283446076,-151.0,0.00010685,2]
[398012493,1765283446085,-151.0,0.00010685,2]
[398012494,1765283446094,-151.0,0.00010685,2]
[398012495,1765283446104,-151.0,0.00010685,2]
[398012496,1765283446113,-151.0,0.00010685,2]
[398012497,1765283446123,-151.0,0.00010685,2]
[398012498,1765283446132,-151.0,0.00010685,2]
[398012499,1765283446141,-151.0,0.00010685,2]
[398012500,1765283446150,-151.0,0.00010685,2]
[398012501,1765283446159,-151.0,0.00010685,2]
[398012502,1765283446168,-255.903026,0.00010685,2]
[398012503,1765283446177,-151.0,0.00010685,2]
[398012504,1765283446186,-151.0,0.00010685,2]
[398012505,1765283446195,-151.0,0.00010685,2]
[398012506,1765283446205,-151.0,0.00010685,2]
[398012507,1765283446214,-151.0,0.00010685,2]
[398012508,1765283446223,-151.0,0.00010685,2]
[398012509,1765283446232,-151.0,0.00010685,2]
[398012510,1765283446242,-151.0,0.00010685,2]
[398012511,1765283446251,-158.572856,0.00010685,2]
[398012512,1765283446261,-151.0,0.00010685,2]
[398012513,1765283446271,-151.0,0.00010685,2]
[398012514,1765283446280,-151.0,0.00010685,2]
[398012515,1765283446289,-151.0,0.00010685,2]
[398012516,1765283446299,-151.0,0.00010685,2]
[398012517,1765283446308,-500.0,0.00010685,2]
[398012518,1765283446319,-280.112833,0.00010685,2]
[398012519,1765283446329,-280.112833,0.00010685,2]
[398012520,1765283446338,-280.112833,0.00010685,2]
[398012521,1765283446351,-280.112827,0.00010685,2]
[398012522,1765283446360,-291.943704,0.00010685,2]
[398012523,1765283446370,-291.943704,0.00010685,2]
[398012524,1765283446379,-291.943704,0.00010685,2]
[398012525,1765283446388,-291.943709,0.00010685,2]
[398012526,1765283446398,-151.0,0.00010685,2]
[398012527,1765283446407,-151.0,0.00010685,2]
[398012528,1765283446418,-159.84,0.00010685,2]
[398012529,1765283446431,-422.590346,0.00010685,2]
[398012530,1765283446440,-422.590346,0.00010685,2]
[398012531,1765283446450,-422.590346,0.00010685,2]
[398012532,1765283446459,-422.59034262,0.00010685,2]
[398012533,1765283446468,-161.257762,0.00010685,2]
[398012534,1765283446478,-151.0,0.00010685,2]
[398012535,1765283446487,-151.0,0.00010685,2]
[398012536,1765283446496,-331.023637,0.00010685,2]
[398012537,1765283446505,-331.023637,0.00010685,2]
[398012538,1765283446514,-331.023637,0.00010685,2]
[398012539,1765283446523,-331.023641,0.00010685,2]
[398012540,1765283446532,-151.0,0.00010685,2]
[398012541,1765283446542,-151.0,0.00010685,2]
[398012542,1765283446551,-196.659496,0.00010685,2]
[398012543,1765283446561,-532.1,0.000107,2]
[398012544,1765283446570,-532.1,0.000107,2]
[398012545,1765283446579,-532.1,0.000108,2]
[398012546,1765283446588,-532.1,0.000109,2]
[398012547,1765283446598,-999.0,0.00010959,2]
[398012548,1765283446607,-21436.0872312,0.00010959,2]
[398012549,1765283446617,-500.0,0.00010959,2]
[398012550,1765283446626,-306.0,0.00010959,2]
[398012551,1765283446636,-159.84,0.00010959,2]
[398012552,1765283446645,-548.84443723,0.00010959,2]
[398012553,1765283446655,-548.84443723,0.00010959,2]
[398012554,1765283446665,-548.84443723,0.00010959,2]
[398012555,1765283446674,-548.84443723,0.00010959,2]
[398012556,1765283446684,-548.84443723,0.00010959,2]
[398012557,1765283446693,-548.84443723,0.00010959,2]
[398012558,1765283446703,-548.84443723,0.00010959,2]
[398012559,1765283446712,-548.84443723,0.00010959,2]
[398012560,1765283446722,-548.84443723,0.00010959,2]
[398012561,1765283446731,-548.84443723,0.00010959,2]
[398012562,1765283446741,-258.47182114,0.00010959,2]
[398012563,1765283446758,-290.37261609,0.00010959,2]
[398012564,1765283446767,-213.76738391,0.00010959,2]
[398012565,1765283446909,-25197.01878894,7.723e-05,2]
[398012574,1765284354131,-309.61,6.753e-05,2]
[398012575,1765284354151,-296.69464101,7.211e-05,2]
[398012576,1765284354171,-542.4999238,7.367e-05,2]
[398012591,1765284631747,-298.76,6.77e-05,2]
[398012592,1765284631756,-69.86687799,7.078e-05,2]
[398012921,1765284645876,-220.8938702,7.078e-05,2]
[398012922,1765284645886,-597.53,7.385e-05,2]
[398012923,1765284645895,-347.30356795,7.69e-05,2]
[398012924,1765284645906,-899.0,7.721e-05,2]
[398012925,1765284645915,-212.2541895,7.804e-05,2]
[398012926,1765284645925,-5060.63738589,7.876e-05,2]
[398012979,1765285040767,-8915.62919752,6.876e-05,2]
[398012980,1765285042645,-10000.01,6.876e-05,2]
[398012981,1765285042861,-10000.01,6.876e-05,2]
[398012982,1765285045706,-10000.01,6.876e-05,2]
[398012983,1765285140235,150.0,0.00010877,30]
[398012984,1765285140654,254.06,0.00011866,30]
[398012985,1765285141431,381.08,0.00012855,30]
[398012986,1765285141591,508.11,0.00013844,30]
[398012987,1765285219513,150.0,0.00011584,30]
[398012988,1765285219944,239.95,0.00012637,30]
[398012989,1765285220352,359.92,0.0001369,30]
[398012990,1765285298265,150.0,0.00013345,30]
[398012991,1765285380741,150.0,0.00013378,30]
[398013187,1765285843168,-300.0,6.875e-05,2]
[398013188,1765285843178,-1200.0,6.875e-05,2]
[398013189,1765285843187,-297.86043512,6.875e-05,2]
[398013190,1765285843197,-8037.01903078,6.876e-05,2]
[398013191,1765285843206,-433.18211007,6.876e-05,2]
[398013192,1765285843216,-266.58,7.07e-05,2]
[398013193,1765285843225,-332.0,7.562e-05,2]
[398013194,1765285843235,-1200.0,7.562e-05,2]
[398013195,1765285843244,-533.15,7.713e-05,2]
[398013196,1765285843253,-4972.58456117,7.779e-05,2]
[398013197,1765285843263,-500.0,7.779e-05,2]
[398013198,1765285843272,-500.0,7.779e-05,2]
[398013199,1765285843281,-334.11197771,7.779e-05,2]
[398013200,1765285843290,-500.0,7.779e-05,2]
[398013201,1765285843299,-500.0,7.779e-05,2]
[398013202,1765285843308,-500.0,7.779e-05,2]
[398013203,1765285843318,-500.0,7.779e-05,2]
[398013204,1765285843327,-500.0,7.779e-05,2]
[398013205,1765285843336,-206.58154786,7.779e-05,2]
[398013206,1765285843345,-530.30017422,7.779e-05,2]
[398013208,1765285843354,-500.0,7.779e-05,2]
[398013209,1765285843364,-500.0,7.779e-05,2]
[398013210,1765285843374,-500.0,7.779e-05,2]
[398013211,1765285843384,-500.0,7.779e-05,2]
[398013212,1765285843393,-500.0,7.779e-05,2]
[398013213,1765285843403,-500.0,7.779e-05,2]
[398013214,1765285843412,-500.0,7.779e-05,2]
[398013215,1765285843422,-500.0,7.779e-05,2]
[398013216,1765285843432,-462.42649798,7.779e-05,2]
[398013217,1765285843441,-60118.14506901,7.78e-05,2]
[398013218,1765285843450,-347.30356795,7.838e-05,2]
[398013219,1765285843459,-250.0,7.875e-05,2]
[398013220,1765285843469,-600.0,7.876e-05,2]
[398013221,1765285843478,-300.0,7.876e-05,2]
[398013222,1765285843487,-300.0,7.876e-05,2]
[398013223,1765285843497,-300.0,7.876e-05,2]
[398013224,1765285843506,-300.0,7.876e-05,2]
[398013225,1765285843516,-300.0,7.876e-05,2]
[398013226,1765285843525,-300.0,7.876e-05,2]
[398013227,1765285843536,-300.0,7.876e-05,2]
[398013228,1765285843545,-2247.26744731,7.958e-05,2]
[398013229,1765285843555,-631.0,8.022e-05,2]
[398013230,1765285843564,-1359.0,8.022e-05,2]
[398013231,1765285843574,-2155.0,8.022e-05,2]
[398013232,1765285843583,-300.0,8.032e-05,2]
[398013233,1765285843593,-300.0,8.032e-05,2]
[398013234,1765285843602,-300.0,8.032e-05,2]
[398013235,1765285843612,-300.0,8.032e-05,2]
[398013236,1765285843621,-300.0,8.032e-05,2]
[398013237,1765285843630,-300.0,8.032e-05,2]
[398013238,1765285843639,-300.0,8.032e-05,2]
[398013239,1765285843649,-300.0,8.032e-05,2]
[398013240,1765285843659,-300.0,8.032e-05,2]
[398013241,1765285843668,-500.0,8.032e-05,2]
[398013242,1765285843677,-501.0,8.032e-05,2]
[398013243,1765285843686,-297.07063086,8.032e-05,2]
[398013244,1765285843695,-500.0,8.032e-05,2]
[398013245,1765285843704,-500.0,8.032e-05,2]
[398013246,1765285843713,-151.0,8.032e-05,2]
[398013247,1765285843723,-500.0,8.032e-05,2]
[398013248,1765285843732,-500.0,8.032e-05,2]
[398013249,1765285843743,-151.0,8.032e-05,2]
[398013250,1765285843755,-644.65304574,8.08e-05,2]
[398013251,1765285843764,-3660.12677692,8.122e-05,2]
[398013252,1765285843773,-500.0,8.169e-05,2]
[398013253,1765285843782,-501.0,8.169e-05,2]
[398013254,1765285843792,-500.0,8.169e-05,2]
[398013255,1765285843801,-500.0,8.169e-05,2]
[398013256,1765285843811,-247.86319052,8.169e-05,2]
[398013257,1765285843820,-502.97629814,8.169e-05,2]
[398013258,1765285843829,-500.0,8.169e-05,2]
[398013259,1765285843839,-151.0,8.169e-05,2]
[398013260,1765285843848,-1534.79,8.219e-05,2]
[398013261,1765285843858,-1534.79,8.219e-05,2]
[398013262,1765285843867,-1534.79,8.219e-05,2]
[398013263,1765285843876,-1534.79,8.219e-05,2]
[398013264,1765285843886,-1534.79,8.219e-05,2]
[398013265,1765285843895,-1534.79,8.219e-05,2]
[398013266,1765285843904,-1534.79,8.219e-05,2]
[398013267,1765285843914,-1534.79,8.219e-05,2]
[398013268,1765285843923,-1534.79,8.219e-05,2]
[398013269,1765285843933,-1534.79,8.219e-05,2]
[398013270,1765285843942,-1534.79,8.219e-05,2]
[398013271,1765285843952,-1534.79,8.219e-05,2]
[398013272,1765285843961,-1534.79,8.219e-05,2]
[398013273,1765285843970,-1534.79,8.219e-05,2]
[398013274,1765285843979,-1534.79,8.219e-05,2]
[398013275,1765285843988,-1534.79,8.219e-05,2]
[398013276,1765285843998,-1534.79,8.219e-05,2]
[398013277,1765285844008,-1534.79,8.219e-05,2]
[398013278,1765285844018,-1534.79,8.219e-05,2]
[398013279,1765285844027,-1534.79,8.219e-05,2]
[398013280,1765285844036,-1534.79,8.219e-05,2]
[398013281,1765285844045,-1534.79,8.219e-05,2]
[398013282,1765285844055,-1534.79,8.219e-05,2]
[398013283,1765285844065,-1534.84865689,8.219e-05,2]
[398013284,1765285844074,-500.0,8.219e-05,2]